[Event "Late-Titled-Tuesday-Blitz-March-19-2024"]
[Site "Chess.com"]
[Date "2024.03.19"]
[Round "6"]
[White "LeninGuerra"]
[Black "finec2"]
[Result "1-0"]
[WhiteElo "2670"]
[BlackElo "2243"]
[TimeControl "180+1"]
[EndTime "15:02:54 PDT"]
[Termination "LeninGuerra won by resignation"]

1. e4 {[%clk 0:03:00.9]} 1... c5 {[%clk 0:02:59.4]} 2. Nf3 {[%clk 0:03:00.6]}
2... e6 {[%clk 0:02:59.5]} 3. b4 {[%clk 0:03:00.6]} 3... cxb4 {[%clk 0:02:59.5]}
4. a3 {[%clk 0:03:01]} 4... bxa3 {[%clk 0:02:59.3]} 5. Bxa3 {[%clk 0:03:01.9]}
5... Bxa3 {[%clk 0:02:58.4]} 6. Nxa3 {[%clk 0:03:02.8]} 6... d6 {[%clk
0:02:52.7]} 7. Bd3 {[%clk 0:02:58]} 7... Nf6 {[%clk 0:02:52.2]} 8. O-O {[%clk
0:02:58.1]} 8... O-O {[%clk 0:02:51.8]} 9. Qe2 {[%clk 0:02:58.3]} 9... Nc6
{[%clk 0:02:48.8]} 10. c3 {[%clk 0:02:57.9]} 10... b6 {[%clk 0:02:42.9]} 11.
Rfb1 {[%clk 0:02:57]} 11... Bb7 {[%clk 0:02:40.8]} 12. Bc2 {[%clk 0:02:57.2]}
12... Qe7 {[%clk 0:02:29.6]} 13. d4 {[%clk 0:02:56.2]} 13... Rfc8 {[%clk
0:02:21.9]} 14. Nb5 {[%clk 0:02:48.4]} 14... Na5 {[%clk 0:02:09]} 15. e5 {[%clk
0:02:41.8]} 15... dxe5 {[%clk 0:02:05.2]} 16. dxe5 {[%clk 0:02:41.5]} 16... Nd5
{[%clk 0:01:58]} 17. Nd6 {[%clk 0:02:41.4]} 17... Rxc3 {[%clk 0:01:28.6]} 18.
Rxa5 {[%clk 0:02:38.5]} 18... Nf4 {[%clk 0:01:17.4]} 19. Qd2 {[%clk 0:02:36.6]}
19... Rxc2 {[%clk 0:01:06.3]} 20. Qxf4 {[%clk 0:02:31.5]} 20... Bxf3 {[%clk
0:01:03.3]} 21. Qxf3 {[%clk 0:02:29.4]} 21... Rd8 {[%clk 0:00:55.7]} 22. Raa1
{[%clk 0:02:24.7]} 22... f5 {[%clk 0:00:53.7]} 23. h3 {[%clk 0:02:24.1]} 23...
g5 {[%clk 0:00:44.9]} 24. Qb3 {[%clk 0:02:23.5]} 24... Rc5 {[%clk 0:00:41.4]}
25. Nxf5 {[%clk 0:02:18]} 25... Qe8 {[%clk 0:00:33.8]} 26. Rxa7 {[%clk
0:02:13.6]} 26... Rxe5 {[%clk 0:00:33]} 27. Nh6+ {[%clk 0:02:11.4]} 27... Kf8
{[%clk 0:00:29.6]} 28. Rf7+ {[%clk 0:02:10]} 28... Qxf7 {[%clk 0:00:29.7]} 29.
Nxf7 {[%clk 0:02:10.9]} 29... Kxf7 {[%clk 0:00:29.3]} 30. Qxb6 {[%clk
0:02:10.8]} 1-0

[Event "Late-Titled-Tuesday-Blitz-March-19-2024"]
[Site "Chess.com"]
[Date "2024.03.19"]
[Round "6"]
[White "chessamical"]
[Black "rodp92"]
[Result "0-1"]
[WhiteElo "2274"]
[BlackElo "2486"]
[TimeControl "180+1"]
[EndTime "15:03:06 PDT"]
[Termination "rodp92 won on time"]

1. d4 {[%clk 0:02:59.5]} 1... g6 {[%clk 0:02:59.6]} 2. e4 {[%clk 0:02:57.7]}
2... c6 {[%clk 0:02:59.2]} 3. Nc3 {[%clk 0:02:44.7]} 3... d5 {[%clk 0:02:59.4]}
4. e5 {[%clk 0:02:43.7]} 4... Bg7 {[%clk 0:02:59.7]} 5. h4 {[%clk 0:02:42.1]}
5... h5 {[%clk 0:02:59.3]} 6. Nh3 {[%clk 0:02:40.8]} 6... Nh6 {[%clk 0:02:58.6]}
7. Ng5 {[%clk 0:02:39.5]} 7... Nf5 {[%clk 0:02:57.9]} 8. Bd3 {[%clk 0:02:22]}
8... O-O {[%clk 0:02:50.3]} 9. Ne2 {[%clk 0:02:17.2]} 9... c5 {[%clk 0:02:49.5]}
10. c3 {[%clk 0:02:12.4]} 10... Nc6 {[%clk 0:02:48]} 11. e6 {[%clk 0:01:57.3]}
11... Bxe6 {[%clk 0:02:46.4]} 12. Nxe6 {[%clk 0:01:56.9]} 12... fxe6 {[%clk
0:02:47.3]} 13. Nf4 {[%clk 0:01:57]} 13... cxd4 {[%clk 0:02:35.9]} 14. Nxg6
{[%clk 0:01:56.1]} 14... dxc3 {[%clk 0:02:17.5]} 15. Nxf8 {[%clk 0:00:52.6]}
15... Qxf8 {[%clk 0:02:17]} 16. Qe2 {[%clk 0:00:52.6]} 16... Qf7 {[%clk
0:02:08.3]} 17. O-O {[%clk 0:00:29]} 17... Ncd4 {[%clk 0:02:01.1]} 18. Qe1
{[%clk 0:00:16.2]} 18... Nxh4 {[%clk 0:01:58.9]} 19. bxc3 {[%clk 0:00:13.6]}
19... Ndf3+ {[%clk 0:01:56.3]} 0-1

[Event "Late-Titled-Tuesday-Blitz-March-19-2024"]
[Site "Chess.com"]
[Date "2024.03.19"]
[Round "6"]
[White "KuzubovYuriy"]
[Black "IMchanged"]
[Result "1-0"]
[WhiteElo "2910"]
[BlackElo "2665"]
[TimeControl "180+1"]
[EndTime "15:03:07 PDT"]
[Termination "KuzubovYuriy won by resignation"]

1. d4 {[%clk 0:03:00.9]} 1... Nf6 {[%clk 0:02:58.6]} 2. c4 {[%clk 0:03:00.6]}
2... c5 {[%clk 0:02:59]} 3. d5 {[%clk 0:02:59.9]} 3... b5 {[%clk 0:02:59.5]} 4.
Nf3 {[%clk 0:02:58.4]} 4... b4 {[%clk 0:02:58]} 5. b3 {[%clk 0:02:55.1]} 5... d6
{[%clk 0:02:57.3]} 6. Bb2 {[%clk 0:02:55.1]} 6... g6 {[%clk 0:02:57.9]} 7. Nbd2
{[%clk 0:02:55]} 7... Bg7 {[%clk 0:02:58.2]} 8. g3 {[%clk 0:02:50.2]} 8... O-O
{[%clk 0:02:57.4]} 9. Bg2 {[%clk 0:02:50.1]} 9... a5 {[%clk 0:02:57.7]} 10. a4
{[%clk 0:02:49.6]} 10... e5 {[%clk 0:02:17.4]} 11. dxe6 {[%clk 0:02:46.9]} 11...
fxe6 {[%clk 0:02:15.4]} 12. O-O {[%clk 0:02:41.4]} 12... Ra7 {[%clk 0:02:15.3]}
13. Qc2 {[%clk 0:02:39.3]} 13... Nc6 {[%clk 0:02:14]} 14. Rad1 {[%clk
0:02:38.6]} 14... Qe8 {[%clk 0:02:04.7]} 15. Ne4 {[%clk 0:02:10.7]} 15... Nxe4
{[%clk 0:02:02.5]} 16. Bxg7 {[%clk 0:02:10.4]} 16... Rxg7 {[%clk 0:01:57.3]} 17.
Qxe4 {[%clk 0:02:09.3]} 17... Qd7 {[%clk 0:01:52.2]} 18. Qd3 {[%clk 0:01:49.5]}
18... Rd8 {[%clk 0:01:42.2]} 19. Ng5 {[%clk 0:01:47.2]} 19... Bb7 {[%clk
0:01:18.1]} 20. Qe3 {[%clk 0:01:23.8]} 20... Re8 {[%clk 0:00:52.7]} 21. Ne4
{[%clk 0:01:22]} 21... Nd4 {[%clk 0:00:38.9]} 1-0

[Event "Late-Titled-Tuesday-Blitz-March-19-2024"]
[Site "Chess.com"]
[Date "2024.03.19"]
[Round "6"]
[White "Licancabur"]
[Black "DryCounty"]
[Result "0-1"]
[WhiteElo "2502"]
[BlackElo "2659"]
[TimeControl "180+1"]
[EndTime "15:03:22 PDT"]
[Termination "DryCounty won by resignation"]

1. d4 {[%clk 0:03:00.9]} 1... Nf6 {[%clk 0:02:59.1]} 2. Bg5 {[%clk 0:03:00.4]}
2... Ne4 {[%clk 0:02:58.5]} 3. Bf4 {[%clk 0:03:00.2]} 3... c5 {[%clk 0:02:58.5]}
4. f3 {[%clk 0:02:59.4]} 4... Qa5+ {[%clk 0:02:58.3]} 5. c3 {[%clk 0:02:59.8]}
5... Nf6 {[%clk 0:02:58.1]} 6. d5 {[%clk 0:03:00]} 6... Qb6 {[%clk 0:02:57.1]}
7. Bc1 {[%clk 0:02:56.9]} 7... e6 {[%clk 0:02:57.1]} 8. e4 {[%clk 0:02:56.2]}
8... c4 {[%clk 0:02:57.1]} 9. Bxc4 {[%clk 0:02:42.9]} 9... Bc5 {[%clk
0:02:56.7]} 10. Ne2 {[%clk 0:02:37.6]} 10... exd5 {[%clk 0:02:55.9]} 11. Bxd5
{[%clk 0:02:34.7]} 11... Nxd5 {[%clk 0:02:54.4]} 12. Qxd5 {[%clk 0:02:33.7]}
12... O-O {[%clk 0:02:52.8]} 13. Nd4 {[%clk 0:02:21.9]} 13... Nc6 {[%clk
0:02:46.9]} 14. Nf5 {[%clk 0:01:55.8]} 14... d6 {[%clk 0:02:35]} 15. Nxg7 {[%clk
0:01:43.9]} 15... Be3 {[%clk 0:02:17.4]} 16. Bd2 {[%clk 0:00:17.8]} 16... Kxg7
{[%clk 0:02:11.5]} 17. Na3 {[%clk 0:00:17.7]} 17... Be6 {[%clk 0:02:06.8]} 18.
Qh5 {[%clk 0:00:16.6]} 18... Bxd2+ {[%clk 0:01:52.2]} 19. Kxd2 {[%clk
0:00:16.4]} 19... f6 {[%clk 0:01:49.1]} 20. b4 {[%clk 0:00:10.8]} 20... Qf2+
{[%clk 0:01:46.3]} 21. Kc1 {[%clk 0:00:08.7]} 21... Ne5 {[%clk 0:01:43.9]} 0-1

[Event "Late-Titled-Tuesday-Blitz-March-19-2024"]
[Site "Chess.com"]
[Date "2024.03.19"]
[Round "6"]
[White "MalyDominator"]
[Black "MaiqMaster"]
[Result "1-0"]
[WhiteElo "2524"]
[BlackElo "2362"]
[TimeControl "180+1"]
[EndTime "15:03:25 PDT"]
[Termination "MalyDominator won by resignation"]

1. e4 {[%clk 0:03:00.9]} 1... e5 {[%clk 0:02:58.8]} 2. Nf3 {[%clk 0:03:01.2]}
2... Nc6 {[%clk 0:02:58.7]} 3. Bb5 {[%clk 0:03:01.8]} 3... a6 {[%clk 0:02:58.9]}
4. Ba4 {[%clk 0:03:02.5]} 4... Nf6 {[%clk 0:02:58.3]} 5. O-O {[%clk 0:03:03.2]}
5... b5 {[%clk 0:02:58.5]} 6. Bb3 {[%clk 0:03:02.8]} 6... Be7 {[%clk 0:02:58.8]}
7. Re1 {[%clk 0:03:02]} 7... O-O {[%clk 0:02:57.1]} 8. a4 {[%clk 0:03:02.3]}
8... Bb7 {[%clk 0:02:56.4]} 9. d4 {[%clk 0:03:00.7]} 9... d6 {[%clk 0:02:48.5]}
10. c3 {[%clk 0:02:59.3]} 10... h6 {[%clk 0:02:38.1]} 11. Nbd2 {[%clk 0:02:59]}
11... Re8 {[%clk 0:02:34.5]} 12. Nf1 {[%clk 0:02:59]} 12... Bf8 {[%clk
0:02:23.1]} 13. Ng3 {[%clk 0:02:59.2]} 13... g6 {[%clk 0:02:21.2]} 14. Nh4
{[%clk 0:02:49.6]} 14... Ne7 {[%clk 0:01:56.8]} 15. Qf3 {[%clk 0:02:37.4]} 15...
Bg7 {[%clk 0:01:47]} 16. Bxh6 {[%clk 0:02:36.8]} 16... c5 {[%clk 0:01:38.4]} 17.
dxe5 {[%clk 0:02:20.6]} 17... dxe5 {[%clk 0:01:31.8]} 18. Rad1 {[%clk
0:01:22.4]} 18... Qb6 {[%clk 0:01:28.5]} 19. Nxg6 {[%clk 0:01:09.9]} 19... Bxh6
{[%clk 0:01:04.8]} 20. Nxe7+ {[%clk 0:01:09.2]} 20... Rxe7 {[%clk 0:01:05.7]}
21. Nf5 {[%clk 0:01:09.6]} 21... Bf8 {[%clk 0:00:54.4]} 22. Rd6 {[%clk
0:01:08.9]} 1-0

[Event "Late-Titled-Tuesday-Blitz-March-19-2024"]
[Site "Chess.com"]
[Date "2024.03.19"]
[Round "6"]
[White "DFeco"]
[Black "Thjop"]
[Result "1-0"]
[WhiteElo "2472"]
[BlackElo "2641"]
[TimeControl "180+1"]
[EndTime "15:03:29 PDT"]
[Termination "DFeco won by resignation"]

1. d4 {[%clk 0:03:00.9]} 1... d5 {[%clk 0:02:59.7]} 2. Nf3 {[%clk 0:03:01]} 2...
Nf6 {[%clk 0:02:59.7]} 3. Bf4 {[%clk 0:03:01.1]} 3... c5 {[%clk 0:02:59.8]} 4.
e3 {[%clk 0:03:01.3]} 4... Nc6 {[%clk 0:03:00.2]} 5. Nbd2 {[%clk 0:03:01]} 5...
Qb6 {[%clk 0:03:00]} 6. dxc5 {[%clk 0:03:01.1]} 6... Qxb2 {[%clk 0:03:00.3]} 7.
Rb1 {[%clk 0:03:01.7]} 7... Qc3 {[%clk 0:02:57.9]} 8. Bb5 {[%clk 0:03:01.8]}
8... g6 {[%clk 0:02:58.2]} 9. e4 {[%clk 0:02:59.7]} 9... dxe4 {[%clk 0:02:58.1]}
10. Be5 {[%clk 0:03:00]} 10... Qa5 {[%clk 0:02:57.8]} 11. O-O {[%clk 0:03:00]}
11... exf3 {[%clk 0:02:58]} 12. Bxc6+ {[%clk 0:02:59.9]} 12... bxc6 {[%clk
0:02:55.4]} 13. Qxf3 {[%clk 0:03:00.4]} 13... Nd5 {[%clk 0:02:53.4]} 14. Bxh8
{[%clk 0:03:00.2]} 14... Qxd2 {[%clk 0:02:51.7]} 15. c4 {[%clk 0:03:00.5]} 15...
f6 {[%clk 0:02:44.3]} 16. Rfd1 {[%clk 0:03:00.4]} 16... Qc3 {[%clk 0:02:38.5]}
17. cxd5 {[%clk 0:03:00.5]} 17... Qxf3 {[%clk 0:02:35.2]} 18. gxf3 {[%clk
0:03:00.4]} 18... Bf5 {[%clk 0:02:30.5]} 19. Rb7 {[%clk 0:03:00.1]} 19... O-O-O
{[%clk 0:02:29.5]} 20. Rxa7 {[%clk 0:03:00]} 20... Kb8 {[%clk 0:02:29.8]} 21.
Ra6 {[%clk 0:02:55.4]} 21... cxd5 {[%clk 0:02:19.3]} 22. Rd4 {[%clk 0:02:55.3]}
22... Kb7 {[%clk 0:01:50.1]} 23. Rb6+ {[%clk 0:02:54.1]} 23... Kc7 {[%clk
0:01:49]} 24. Ra4 {[%clk 0:02:52.7]} 24... Kd7 {[%clk 0:01:37.5]} 25. Ra7+
{[%clk 0:02:14.7]} 25... Ke8 {[%clk 0:01:37]} 26. c6 {[%clk 0:02:15]} 26... d4
{[%clk 0:01:26.9]} 27. c7 {[%clk 0:01:35.1]} 27... Rc8 {[%clk 0:01:26.6]} 28.
Rb8 {[%clk 0:01:34.2]} 28... d3 {[%clk 0:00:55.3]} 29. Raa8 {[%clk 0:01:31.6]}
1-0

[Event "Late-Titled-Tuesday-Blitz-March-19-2024"]
[Site "Chess.com"]
[Date "2024.03.19"]
[Round "6"]
[White "DrCeltic"]
[Black "ameetghasi100"]
[Result "0-1"]
[WhiteElo "2588"]
[BlackElo "2792"]
[TimeControl "180+1"]
[EndTime "15:03:38 PDT"]
[Termination "ameetghasi100 won on time"]

1. e4 {[%clk 0:02:57.4]} 1... g6 {[%clk 0:03:00.2]} 2. d4 {[%clk 0:02:57.6]}
2... Bg7 {[%clk 0:03:01.1]} 3. Nc3 {[%clk 0:02:57.9]} 3... d6 {[%clk 0:03:01.6]}
4. Nf3 {[%clk 0:02:58.4]} 4... Nf6 {[%clk 0:03:01.4]} 5. Be3 {[%clk 0:02:58.4]}
5... O-O {[%clk 0:03:01.8]} 6. Qd2 {[%clk 0:02:58.7]} 6... Nc6 {[%clk
0:03:02.4]} 7. Bh6 {[%clk 0:02:55.6]} 7... Bg4 {[%clk 0:03:01.9]} 8. Bxg7 {[%clk
0:02:54.7]} 8... Kxg7 {[%clk 0:03:02.8]} 9. Ng5 {[%clk 0:02:52.7]} 9... e5
{[%clk 0:03:02.3]} 10. d5 {[%clk 0:02:44.2]} 10... Nd4 {[%clk 0:02:43.7]} 11. f3
{[%clk 0:02:40]} 11... Bc8 {[%clk 0:02:43.8]} 12. h4 {[%clk 0:02:38.7]} 12... h6
{[%clk 0:02:43.3]} 13. Nh3 {[%clk 0:02:38.8]} 13... c6 {[%clk 0:02:30.4]} 14.
dxc6 {[%clk 0:02:34.8]} 14... bxc6 {[%clk 0:02:30]} 15. O-O-O {[%clk 0:02:30.6]}
15... Rb8 {[%clk 0:02:21.6]} 16. Ne2 {[%clk 0:02:25.3]} 16... Nxe2+ {[%clk
0:02:10.1]} 17. Bxe2 {[%clk 0:02:26.2]} 17... Bxh3 {[%clk 0:02:09.9]} 18. Rxh3
{[%clk 0:02:25]} 18... d5 {[%clk 0:02:10.4]} 19. exd5 {[%clk 0:02:23.2]} 19...
cxd5 {[%clk 0:02:10.2]} 20. Kb1 {[%clk 0:02:20.4]} 20... Qb6 {[%clk 0:02:05.2]}
21. b3 {[%clk 0:02:19.1]} 21... d4 {[%clk 0:02:05.4]} 22. Bc4 {[%clk 0:01:56.5]}
22... Rfc8 {[%clk 0:02:05]} 23. Qe2 {[%clk 0:01:56.4]} 23... Qb4 {[%clk
0:02:01.9]} 24. Ba6 {[%clk 0:01:48.7]} 24... Rc6 {[%clk 0:02:00.4]} 25. Bd3
{[%clk 0:01:34.5]} 25... Re8 {[%clk 0:01:48.7]} 26. Be4 {[%clk 0:01:22.4]} 26...
Rc3 {[%clk 0:01:45.4]} 0-1

[Event "Late-Titled-Tuesday-Blitz-March-19-2024"]
[Site "Chess.com"]
[Date "2024.03.19"]
[Round "6"]
[White "only_strong_moves"]
[Black "Sandstad"]
[Result "1-0"]
[WhiteElo "2660"]
[BlackElo "2506"]
[TimeControl "180+1"]
[EndTime "15:03:38 PDT"]
[Termination "only_strong_moves won by resignation"]

1. Nc3 {[%clk 0:03:00.9]} 1... Nf6 {[%clk 0:02:54.8]} 2. e4 {[%clk 0:03:00.4]}
2... e5 {[%clk 0:02:55]} 3. Bc4 {[%clk 0:03:00.6]} 3... Bc5 {[%clk 0:02:54.8]}
4. d3 {[%clk 0:02:59.2]} 4... d6 {[%clk 0:02:54.1]} 5. Nge2 {[%clk 0:02:59.3]}
5... Nc6 {[%clk 0:02:43.5]} 6. Be3 {[%clk 0:02:58.8]} 6... Bb6 {[%clk
0:02:36.9]} 7. Nd5 {[%clk 0:02:56.3]} 7... Nxd5 {[%clk 0:02:33]} 8. Bxd5 {[%clk
0:02:57.2]} 8... Ne7 {[%clk 0:02:27.9]} 9. Bb3 {[%clk 0:02:56.8]} 9... Ng6
{[%clk 0:02:26.6]} 10. Ng3 {[%clk 0:02:54.8]} 10... h5 {[%clk 0:02:22.4]} 11.
Nf5 {[%clk 0:02:51.1]} 11... Qf6 {[%clk 0:02:17.4]} 12. Bxb6 {[%clk 0:02:45.4]}
12... axb6 {[%clk 0:02:17.1]} 13. Ne3 {[%clk 0:02:45.7]} 13... Ne7 {[%clk
0:02:09.8]} 14. Qd2 {[%clk 0:02:43.9]} 14... Be6 {[%clk 0:02:09.8]} 15. O-O
{[%clk 0:02:43.2]} 15... g5 {[%clk 0:02:05.1]} 16. c3 {[%clk 0:02:38.8]} 16...
O-O-O {[%clk 0:01:57.3]} 17. Bxe6+ {[%clk 0:02:30.8]} 17... fxe6 {[%clk
0:01:56.7]} 18. a4 {[%clk 0:02:31.6]} 18... Kd7 {[%clk 0:01:51.4]} 19. a5 {[%clk
0:02:31.1]} 19... b5 {[%clk 0:01:51.7]} 20. Qc2 {[%clk 0:02:28.1]} 20... c6
{[%clk 0:01:34.1]} 21. c4 {[%clk 0:02:26.7]} 21... bxc4 {[%clk 0:01:28.8]} 22.
dxc4 {[%clk 0:02:24.2]} 22... Ra8 {[%clk 0:01:24]} 23. Qb3 {[%clk 0:02:23.3]}
23... Kc8 {[%clk 0:01:19.4]} 24. a6 {[%clk 0:02:21.4]} 24... Rb8 {[%clk
0:01:00.3]} 25. Qa3 {[%clk 0:02:09.4]} 25... Kc7 {[%clk 0:00:55]} 26. c5 {[%clk
0:02:05.9]} 26... d5 {[%clk 0:00:50.6]} 27. Qa5+ {[%clk 0:02:04.3]} 27... Kd7
{[%clk 0:00:48.2]} 28. Ra3 {[%clk 0:01:56.2]} 28... Rhc8 {[%clk 0:00:35.7]} 29.
a7 {[%clk 0:01:55.9]} 29... Ra8 {[%clk 0:00:35.2]} 30. b4 {[%clk 0:01:55.2]}
30... Rc7 {[%clk 0:00:26.8]} 31. b5 {[%clk 0:01:55.5]} 31... Qf4 {[%clk
0:00:20.5]} 32. Ra4 {[%clk 0:01:43]} 32... d4 {[%clk 0:00:18.2]} 33. Nc4 {[%clk
0:01:41.7]} 33... Qxe4 {[%clk 0:00:17.9]} 34. Nb6+ {[%clk 0:01:42.1]} 34... Ke8
{[%clk 0:00:16.7]} 35. Nxa8 {[%clk 0:01:43]} 1-0

[Event "Late-Titled-Tuesday-Blitz-March-19-2024"]
[Site "Chess.com"]
[Date "2024.03.19"]
[Round "6"]
[White "FREZZY23"]
[Black "SocoLoco"]
[Result "1-0"]
[WhiteElo "2378"]
[BlackElo "2157"]
[TimeControl "180+1"]
[EndTime "15:03:45 PDT"]
[Termination "FREZZY23 won on time"]

1. d4 {[%clk 0:03:00.9]} 1... d5 {[%clk 0:02:59]} 2. g3 {[%clk 0:02:59.9]} 2...
Nc6 {[%clk 0:02:58.8]} 3. Bg2 {[%clk 0:02:59.8]} 3... Bg4 {[%clk 0:02:58.7]} 4.
h3 {[%clk 0:02:59.2]} 4... Bf5 {[%clk 0:02:57.7]} 5. Nf3 {[%clk 0:02:57.9]} 5...
Nf6 {[%clk 0:02:56.5]} 6. O-O {[%clk 0:02:57.3]} 6... e6 {[%clk 0:02:54.2]} 7.
c4 {[%clk 0:02:56.9]} 7... Be7 {[%clk 0:02:50.6]} 8. Nc3 {[%clk 0:02:55.4]} 8...
O-O {[%clk 0:02:50.1]} 9. Qa4 {[%clk 0:02:55.1]} 9... Ne4 {[%clk 0:02:45.3]} 10.
Rd1 {[%clk 0:02:49.4]} 10... Re8 {[%clk 0:02:35.6]} 11. Ne5 {[%clk 0:02:47.3]}
11... Nxe5 {[%clk 0:02:12.1]} 12. dxe5 {[%clk 0:02:40.1]} 12... Nxc3 {[%clk
0:02:11.4]} 13. bxc3 {[%clk 0:02:40]} 13... c6 {[%clk 0:02:10.3]} 14. cxd5
{[%clk 0:02:40]} 14... exd5 {[%clk 0:02:05.4]} 15. e4 {[%clk 0:02:39.9]} 15...
Be6 {[%clk 0:01:59.9]} 16. exd5 {[%clk 0:02:37]} 16... cxd5 {[%clk 0:01:59.4]}
17. c4 {[%clk 0:02:36.7]} 17... d4 {[%clk 0:01:46.9]} 18. Be3 {[%clk 0:02:36.5]}
18... Bc5 {[%clk 0:01:45]} 19. Bxb7 {[%clk 0:02:35.5]} 19... Bxh3 {[%clk
0:01:42.4]} 20. Bc6 {[%clk 0:02:23.3]} 20... Rxe5 {[%clk 0:01:18.6]} 21. Bxd4
{[%clk 0:02:16.4]} 21... Bxd4 {[%clk 0:01:13.5]} 22. c5 {[%clk 0:02:16.5]} 22...
Qg5 {[%clk 0:00:28.6]} 23. Qxd4 {[%clk 0:01:37.3]} 23... Rc8 {[%clk 0:00:14.8]}
24. Bb7 {[%clk 0:01:36.4]} 24... Rce8 {[%clk 0:00:13.4]} 25. c6 {[%clk
0:01:35.1]} 25... Qxg3+ {[%clk 0:00:12.1]} 26. fxg3 {[%clk 0:01:34.1]} 1-0

[Event "Late-Titled-Tuesday-Blitz-March-19-2024"]
[Site "Chess.com"]
[Date "2024.03.19"]
[Round "6"]
[White "Njal28"]
[Black "DanielNaroditsky"]
[Result "1/2-1/2"]
[WhiteElo "3057"]
[BlackElo "3172"]
[TimeControl "180+1"]
[EndTime "15:04:00 PDT"]
[Termination "Game drawn by agreement"]

1. e4 {[%clk 0:03:00.9]} 1... e5 {[%clk 0:02:59.7]} 2. Nf3 {[%clk 0:03:00.9]}
2... Nc6 {[%clk 0:03:00.4]} 3. Nc3 {[%clk 0:03:00.9]} 3... Nf6 {[%clk
0:03:00.6]} 4. Bb5 {[%clk 0:02:57.7]} 4... Nd4 {[%clk 0:03:01]} 5. Nxd4 {[%clk
0:02:57.7]} 5... exd4 {[%clk 0:03:01.9]} 6. e5 {[%clk 0:02:58.3]} 6... dxc3
{[%clk 0:03:02.1]} 7. exf6 {[%clk 0:02:58.8]} 7... Qxf6 {[%clk 0:03:02.9]} 8.
dxc3 {[%clk 0:02:59.3]} 8... Bc5 {[%clk 0:02:59]} 9. Qe2+ {[%clk 0:02:55.3]}
9... Qe6 {[%clk 0:02:58.1]} 10. Qxe6+ {[%clk 0:02:48.4]} 10... fxe6 {[%clk
0:02:59]} 11. f3 {[%clk 0:02:44]} 11... Kf7 {[%clk 0:02:44]} 12. a4 {[%clk
0:02:37.6]} 12... a6 {[%clk 0:02:36.7]} 13. Bd3 {[%clk 0:02:36.3]} 13... a5
{[%clk 0:02:31.2]} 14. h4 {[%clk 0:02:32.3]} 14... d6 {[%clk 0:02:23.4]} 15. h5
{[%clk 0:02:30.8]} 15... e5 {[%clk 0:02:19.3]} 16. Bd2 {[%clk 0:02:26.8]} 16...
h6 {[%clk 0:02:10.9]} 17. O-O-O {[%clk 0:02:08.2]} 17... Be6 {[%clk 0:02:09.3]}
18. Rde1 {[%clk 0:02:03.3]} 18... Rhf8 {[%clk 0:01:39]} 19. f4 {[%clk
0:01:50.5]} 19... exf4 {[%clk 0:01:34.1]} 20. Rhf1 {[%clk 0:01:45.4]} 20... Ke7
{[%clk 0:01:15.9]} 21. Bc4 {[%clk 0:01:26.8]} 21... Be3 {[%clk 0:01:16.1]} 22.
Bxe6 {[%clk 0:01:10.2]} 22... Kxe6 {[%clk 0:01:17]} 23. Bxe3 {[%clk 0:01:10.2]}
23... fxe3 {[%clk 0:01:17.9]} 24. Rxe3+ {[%clk 0:01:10.5]} 24... Kd7 {[%clk
0:01:18.5]} 25. Rxf8 {[%clk 0:01:04]} 25... Rxf8 {[%clk 0:01:19.4]} 26. Rg3
{[%clk 0:01:02.7]} 26... Rf7 {[%clk 0:01:16.8]} 27. b4 {[%clk 0:00:59.5]} 27...
b6 {[%clk 0:01:11.5]} 28. Kb2 {[%clk 0:00:55.2]} 28... Kc6 {[%clk 0:01:10.6]}
29. Rg6 {[%clk 0:00:47.5]} 29... Rf5 {[%clk 0:01:04.2]} 30. b5+ {[%clk
0:00:37.1]} 30... Kb7 {[%clk 0:01:04.8]} 31. g4 {[%clk 0:00:35.1]} 31... Rf7
{[%clk 0:00:55.8]} 32. c4 {[%clk 0:00:33]} 32... Kc8 {[%clk 0:00:55.2]} 1/2-1/2

[Event "Late-Titled-Tuesday-Blitz-March-19-2024"]
[Site "Chess.com"]
[Date "2024.03.19"]
[Round "6"]
[White "Pingah9"]
[Black "JoakimVonAnd"]
[Result "0-1"]
[WhiteElo "2577"]
[BlackElo "2713"]
[TimeControl "180+1"]
[EndTime "15:04:05 PDT"]
[Termination "JoakimVonAnd won by resignation"]

1. e4 {[%clk 0:03:00.9]} 1... c5 {[%clk 0:02:57.6]} 2. Nc3 {[%clk 0:03:00.4]}
2... e6 {[%clk 0:02:56.9]} 3. g3 {[%clk 0:03:00.6]} 3... a6 {[%clk 0:02:54.5]}
4. Bg2 {[%clk 0:03:00.4]} 4... b5 {[%clk 0:02:55]} 5. Nge2 {[%clk 0:02:59.8]}
5... Bb7 {[%clk 0:02:55.4]} 6. d4 {[%clk 0:02:59.4]} 6... cxd4 {[%clk
0:02:52.6]} 7. Nxd4 {[%clk 0:03:00.3]} 7... Nf6 {[%clk 0:02:52.3]} 8. Qe2 {[%clk
0:02:56]} 8... d5 {[%clk 0:02:49.3]} 9. e5 {[%clk 0:02:40.7]} 9... Nfd7 {[%clk
0:02:48.6]} 10. O-O {[%clk 0:02:36.3]} 10... Nc6 {[%clk 0:02:45]} 11. Nxc6
{[%clk 0:02:30.7]} 11... Bxc6 {[%clk 0:02:45.9]} 12. f4 {[%clk 0:02:22.9]} 12...
Bc5+ {[%clk 0:02:45]} 13. Kh1 {[%clk 0:02:23.2]} 13... g6 {[%clk 0:02:41.1]} 14.
Be3 {[%clk 0:02:18.3]} 14... Qb6 {[%clk 0:02:37.7]} 15. Bf2 {[%clk 0:02:12.5]}
15... h5 {[%clk 0:02:36.8]} 16. h4 {[%clk 0:02:06.6]} 16... Bxf2 {[%clk
0:02:27]} 17. Rxf2 {[%clk 0:02:06.3]} 17... Kf8 {[%clk 0:02:25.6]} 18. a3 {[%clk
0:01:38.5]} 18... Kg7 {[%clk 0:02:23.8]} 19. Raf1 {[%clk 0:01:37.3]} 19... a5
{[%clk 0:02:22.2]} 20. Nd1 {[%clk 0:01:35.2]} 20... b4 {[%clk 0:02:21.9]} 21.
Qd2 {[%clk 0:01:30.2]} 21... bxa3 {[%clk 0:02:07]} 22. bxa3 {[%clk 0:01:31.1]}
22... Bb5 {[%clk 0:02:03.3]} 23. Re1 {[%clk 0:01:31.2]} 23... Rac8 {[%clk
0:02:02]} 24. Ne3 {[%clk 0:01:28.4]} 24... d4 {[%clk 0:01:48.8]} 25. Nf1 {[%clk
0:01:12.5]} 25... Rc3 {[%clk 0:01:46.1]} 26. Kh2 {[%clk 0:01:00.6]} 26... Rhc8
{[%clk 0:01:44.1]} 27. f5 {[%clk 0:00:34.3]} 27... exf5 {[%clk 0:01:42]} 28. e6
{[%clk 0:00:27.7]} 28... fxe6 {[%clk 0:01:40.6]} 29. Qg5 {[%clk 0:00:27.8]}
29... Nf6 {[%clk 0:01:35.9]} 30. Nd2 {[%clk 0:00:20.4]} 30... d3 {[%clk
0:01:33.4]} 31. Rxf5 {[%clk 0:00:16.3]} 31... exf5 {[%clk 0:01:18.5]} 32. Re7+
{[%clk 0:00:16.3]} 32... Kf8 {[%clk 0:01:19]} 33. Re5 {[%clk 0:00:12.1]} 33...
Ng4+ {[%clk 0:01:18.4]} 0-1